fUSD/lending_fUSD_20260224
["ID","MTS","AMOUNT","RATE_DAILY","PERIOD"]
[406547875,1771932643970,-523.24,0.00013698,2]
[406547876,1771932643980,-523.24,0.00013698,2]
[406547877,1771932643990,-523.24,0.00013698,2]
[406547878,1771932643999,-523.24,0.00013698,2]
[406547879,1771932644010,-523.24,0.00013698,2]
[406547880,1771932644019,-523.24,0.00013698,2]
[406547881,1771932644029,-523.24,0.00013698,2]
[406547882,1771932644040,-523.24,0.00013698,2]
[406547883,1771932644052,-523.24,0.00013698,2]
[406547884,1771932644061,-523.24,0.00013698,2]
[406547885,1771932644071,-523.24,0.00013698,2]
[406547886,1771932644081,-500.0,0.00013698,2]
[406547887,1771932644091,-500.0,0.00013698,2]
[406547888,1771932644100,-500.0,0.00013698,2]
[406547889,1771932644108,-500.0,0.00013698,2]
[406547890,1771932644118,-500.0,0.00013698,2]
[406547891,1771932644127,-500.0,0.00013698,2]
[406547892,1771932644136,-500.0,0.00013698,2]
[406547893,1771932644145,-500.0,0.00013698,2]
[406547894,1771932644154,-500.0,0.00013698,2]
[406547895,1771932644163,-500.0,0.00013698,2]
[406547896,1771932644172,-500.0,0.00013698,2]
[406547897,1771932644182,-500.0,0.00013698,2]
[406547898,1771932644192,-500.0,0.00013698,2]
[406547899,1771932644201,-500.0,0.00013698,2]
[406547900,1771932644210,-222.44569411,0.00013698,2]
[406547901,1771932644219,-858.26,0.00013698,2]
[406547902,1771932644228,-858.26,0.00013698,2]
[406547903,1771932644238,-858.26,0.00013698,2]
[406547904,1771932644247,-858.26,0.00013698,2]
[406547905,1771932644256,-858.26,0.00013698,2]
[406547906,1771932644266,-858.26,0.00013698,2]
[406547907,1771932644275,-858.26,0.00013698,2]
[406547908,1771932644284,-858.26,0.00013698,2]
[406547909,1771932644293,-858.26,0.00013698,2]
[406547910,1771932644302,-858.26,0.00013698,2]
[406547911,1771932644311,-858.26,0.00013698,2]
[406547912,1771932644321,-858.26,0.00013698,2]
[406547913,1771932644330,-858.26,0.00013698,2]
[406547914,1771932644339,-858.26,0.00013698,2]
[406547915,1771932644348,-858.26,0.00013698,2]
[406547916,1771932644358,-858.26,0.00013698,2]
[406547917,1771932644368,-858.26,0.00013698,2]
[406547918,1771932644377,-500.0,0.00013698,2]
[406547919,1771932644387,-500.0,0.00013698,2]
[406547920,1771932644395,-500.0,0.00013698,2]
[406547921,1771932644404,-500.0,0.00013698,2]
[406547922,1771932644414,-500.0,0.00013698,2]
[406547923,1771932644423,-500.0,0.00013698,2]
[406547924,1771932644432,-500.0,0.00013698,2]
[406547925,1771932644441,-500.0,0.00013698,2]
[406547926,1771932644450,-500.0,0.00013698,2]
[406547927,1771932644459,-500.0,0.00013698,2]
[406547928,1771932644468,-500.0,0.00013698,2]
[406547929,1771932644478,-500.0,0.00013698,2]
[406547930,1771932644488,-500.0,0.00013698,2]
[406547931,1771932644497,-500.0,0.00013698,2]
[406547932,1771932644506,-500.0,0.00013698,2]
[406547933,1771932644516,-500.0,0.00013698,2]
[406547934,1771932644525,-500.0,0.00013698,2]
[406547935,1771932644534,-500.0,0.00013698,2]
[406547936,1771932644545,-500.0,0.00013698,2]
[406547937,1771932644556,-500.0,0.00013698,2]
[406547938,1771932644566,-500.0,0.00013698,2]
[406547939,1771932644575,-500.0,0.00013698,2]
[406547940,1771932644585,-500.0,0.00013698,2]
[406547941,1771932644594,-500.0,0.00013698,2]
[406547942,1771932644772,-500.0,0.00013698,2]
[406547943,1771932644783,-500.0,0.00013698,2]
[406547944,1771932644792,-500.0,0.00013698,2]
[406547945,1771932644801,-500.0,0.00013698,2]
[406547946,1771932644810,-500.0,0.00013698,2]
[406547947,1771932644819,-500.0,0.00013698,2]
[406547948,1771932644829,-500.0,0.00013698,2]
[406547949,1771932644838,-425.41241493,0.00013698,2]
[406547950,1771932644848,-16296.14,0.00013699,2]
[406547951,1771932644857,-500.0,0.00013699,2]
[406547952,1771932644867,-509.0327441,0.00013699,2]
[406547953,1771932644876,-164.16786887,0.00013699,2]
[406547954,1771932644885,-503.3459029,0.00013699,2]
[406547955,1771932644894,-500.0,0.00013699,2]
[406547956,1771932644903,-162.13031906,0.00013699,2]
[406547957,1771932644912,-500.0,0.00013699,2]
[406547958,1771932644921,-500.0,0.00013699,2]
[406547959,1771932644930,-500.0,0.00013699,2]
[406547960,1771932644939,-503.99220136,0.00013699,2]
[406547961,1771932644948,-511.18624479,0.00013699,2]
[406547962,1771932644958,-504.16390705,0.00013699,2]
[406547963,1771932644967,-500.0,0.00013699,2]
[406547964,1771932644977,-500.0,0.00013699,2]
[406547965,1771932644986,-304.38005979,0.00013699,2]
[406547966,1771932644995,-500.0,0.00013699,2]
[406547967,1771932645005,-501.93759306,0.00013699,2]
[406547968,1771932645014,-186.88471708,0.00013699,2]
[406547969,1771932645023,-168.61283304,0.00013699,2]
[406547970,1771932645032,-500.0,0.00013699,2]
[406547971,1771932645044,-500.0,0.00013699,2]
[406547972,1771932645054,-500.0,0.00013699,2]
[406547973,1771932645064,-504.28462668,0.00013699,2]
[406547974,1771932645073,-500.0,0.00013699,2]
[406547975,1771932645083,-500.0,0.00013699,2]
[406547976,1771932645093,-599.206441,0.00013699,2]
[406547977,1771932645102,-500.0,0.00013699,2]
[406547978,1771932645112,-487.94127816,0.00013699,2]
[406547979,1771932645123,-500.0,0.00013699,2]
[406547980,1771932645132,-170.38160206,0.00013699,2]
[406547981,1771932645142,-500.0,0.00013699,2]
[406547982,1771932645153,-209.6165406,0.00013699,2]
[406547983,1771932645163,-503.60394883,0.00013699,2]
[406547984,1771932645172,-948.45950757,0.00013814,2]
[406547985,1771932645182,-27376.86086096,0.00013835,2]
[406547986,1771932645191,-736.0,0.00013914,2]
[406547987,1771932645200,-250.0,0.00013929,2]
[406547988,1771932645209,-500.0,0.00013929,2]
[406547989,1771932645218,-31092.68361968,0.00014006,2]
[406547990,1771932645228,-823.0,0.00014007,2]
[406547991,1771932645237,-3292.0,0.0001403,2]
[406547992,1771932645246,-215.42973367,0.00014047,2]
[406547993,1771932645255,-150.0,0.00014147,2]
[406547994,1771932645264,-1276.82336401,0.00014168,2]
[406547995,1771932645274,-871.93707751,0.00014168,2]
[406547996,1771932645283,-1003.87713345,0.00014168,2]
[406547997,1771932645292,-1500.0,0.00014168,2]
[406547998,1771932645301,-1500.0,0.00014168,2]
[406547999,1771932645310,-527.71923747,0.00014168,2]
[406548000,1771932645319,-1500.0,0.00014168,2]
[406548001,1771932645329,-450.07875894,0.00014171,2]
[406548002,1771932645338,-500.0,0.00014203,2]
[406548003,1771932645347,-501.53221813,0.00014247,2]
[406548004,1771932645356,-483.17728486,0.00014247,2]
[406548005,1771932645365,-436.95947364,0.00014247,2]
[406548006,1771932645374,-1092.86766843,0.00014247,2]
[406548007,1771932645383,-502.25935248,0.00014247,2]
[406548008,1771932645392,-1000.0,0.00014247,2]
[406548009,1771932645401,-1000.0,0.00014247,2]
[406548010,1771932645410,-1000.0,0.00014247,2]
[406548011,1771932645419,-1000.0,0.00014247,2]
[406548012,1771932645428,-1000.0,0.00014247,2]
[406548013,1771932645437,-500.0,0.00014247,2]
[406548014,1771932645446,-1000.0,0.00014247,2]
[406548015,1771932645455,-1028.84101903,0.00014247,2]
[406548016,1771932645463,-243.69912151,0.00014247,2]
[406548017,1771932645472,-1000.0,0.00014247,2]
[406548018,1771932645481,-583.60061699,0.00014247,2]
[406548019,1771932645490,-982.12,0.00014259,2]
[406548020,1771932645499,-150.0,0.00014308,2]
[406548021,1771932645508,-10357.55636516,0.0001439,2]
[406548022,1771932645516,-291.85083956,0.00014477,2]
[406548023,1771932645526,-482.62263511,0.00014508,2]
[406548024,1771932645535,-482.62263508,0.00014508,2]
[406548025,1771932645544,-31092.68361968,0.00014515,2]
[406548026,1771932645553,-151.0,0.00014634,2]
[406548027,1771932645563,-151.0,0.00014634,2]
[406548028,1771932645572,-151.0,0.00014634,2]
[406548029,1771932645581,-151.0,0.00014634,2]
[406548030,1771932645590,-27376.86086096,0.00014657,2]
[406548031,1771932645599,-1000.0,0.00014707,2]
[406548032,1771932645609,-549.94,0.00014711,2]
[406548033,1771932645618,-657.39,0.00014711,2]
[406548034,1771932645626,-1364.36,0.00014711,2]
[406548035,1771932645636,-2190.8,0.00014712,2]
[406548036,1771932645645,-2000.0,0.00014716,2]
[406548037,1771932645654,-2000.0,0.00014716,2]
[406548038,1771932645663,-2000.0,0.00014716,2]
[406548039,1771932645673,-1390.05507377,0.00014795,2]
[406548040,1771932645682,-1500.0,0.00014795,2]
[406548041,1771932645692,-602.53164684,0.00014795,2]
[406548042,1771932645701,-193.71551848,0.00014795,2]
[406548043,1771932645712,-1500.0,0.00014795,2]
[406548044,1771932645721,-1500.0,0.00014795,2]
[406548045,1771932645730,-1500.0,0.00014795,2]
[406548046,1771932645739,-525.76,0.00014853,2]
[406548048,1771932645749,-482.62263511,0.00014871,2]
[406548049,1771932645758,-176.18400318,0.000149,2]
[406548050,1771932645767,-250.0,0.00015,2]
[406548051,1771932645776,-2057.23131483,0.00015,2]
[406548052,1771932645784,-18027.12324089,0.00015,7]
[406548053,1771932645793,-8008.97204016,0.00015,2]
[406548055,1771932645803,-31092.68361968,0.00015024,2]
[406548057,1771932645811,-111946.48515297,0.0001512,2]
[406548058,1771932646012,-128493.07613031,0.0001512,2]
[406548059,1771932646022,-160.0,0.00015124,2]
[406548060,1771932646031,-173.87087054,0.00015124,2]
[406548061,1771932646045,-482.62263511,0.00015234,2]
[406548062,1771932646056,-1252.0,0.00015263,2]
[406548063,1771932646066,-374.73958587,0.00015264,2]
[406548064,1771932646075,-2500.0,0.00015264,2]
[406548065,1771932646086,-2500.0,0.00015264,2]
[406548066,1771932646096,-1517.64,0.000153,2]
[406548067,1771932646105,-932.65135931,0.00015342,2]
[406548068,1771932646116,-503.05357398,0.00015342,2]
[406548069,1771932646126,-1255.82806005,0.00015342,2]
[406548070,1771932646135,-155.746908,0.0001539,7]
[406548071,1771932646144,-1152.0,0.00015399,2]
[406548072,1771932646153,-510.0565306,0.000154,2]
[406548073,1771932646162,-4609.0,0.00015433,2]
[406548074,1771932646171,-27376.86086096,0.0001548,2]
[406548075,1771932646181,-982.12,0.00015555,2]
[406548076,1771932646190,-500.0,0.00015579,2]
[406548077,1771932646199,-331.25308804,0.00015579,2]
[406548078,1771932646209,-482.62263511,0.00015596,2]
[406548079,1771932646219,-3347.098092,0.00015616,7]
[406548080,1771932646228,-150.0,0.0001579,2]
[406548081,1771932646238,-2247.75609779,0.00015807,2]
[406548082,1771932646247,-3000.0,0.00015812,2]
[406548083,1771932646256,-877.20909449,0.00015812,2]
[406548084,1771932646265,-500.0,0.00015849,4]
[406548085,1771932646274,-461.85,0.00015911,2]
[406548086,1771932646283,-482.62263511,0.00015959,2]
[406548087,1771932646294,-419.22118993,0.00016,2]
[406548089,1771932646303,-380.32235674,0.00016,2]
[406548091,1771932646312,-461.85,0.0001607,2]
[406548092,1771932646321,-2725.04997657,0.00016092,2]
[406548093,1771932646329,-380.32235674,0.000161,2]
[406548094,1771932646338,-9999.99,0.00016116,2]
[406548095,1771932646347,-778.04,0.00016172,2]
[406548096,1771932646356,-5000.00877492,0.000162,5]
[406548097,1771932646365,-380.32235674,0.000162,2]
[406548098,1771932646374,-461.85,0.00016229,2]
[406548099,1771932646383,-454.1749961,0.00016236,2]
[406548100,1771932646392,-27376.86086096,0.00016303,2]
[406548101,1771932646401,-482.62263511,0.00016322,2]
[406548102,1771932646410,-200.0,0.0001634,2]
[406548103,1771932646419,-3500.0,0.0001636,2]
[406548104,1771932646427,-461.85,0.00016388,2]
[406548105,1771932646436,-454.1749961,0.00016397,2]
[406548106,1771932646445,-20000.0,0.00016438,2]
[406548107,1771932646455,-150.73989367,0.00016438,2]
[406548109,1771932646464,-778.04,0.00016446,2]
[406548111,1771932646473,-1000.0,0.00016545,2]
[406548112,1771932646482,-461.85,0.00016548,2]
[406548113,1771932646491,-224.42031989,0.00016551,2]
[406548114,1771932646500,-454.1749961,0.00016558,2]
[406548115,1771932646509,-361.85708907,0.000166,2]
[406548116,1771932646518,-482.62263511,0.00016685,2]
[406548117,1771932646527,-461.89325126,0.00016707,2]
[406548118,1771932646536,-2129.0,0.00016749,2]
[406548119,1771932646545,-620.70979822,0.00016908,2]
[406548120,1771932646554,-1613.0,0.0001693,2]
[406548121,1771932646564,-6453.0,0.00016976,2]
[406548122,1771932646574,-300.0,0.00017,2]
[406548123,1771932646583,-173.87087054,0.00017,7]
[406548124,1771932646592,-173394.94308668,0.00017,2]
[406548125,1771932646604,-500.0,0.00017,2]
[406548126,1771932646643,-500.0,0.00017,2]
[406548127,1771932646911,-758.29075677,0.00017,2]
[406548128,1771932646926,-230823.07484912,0.00017,2]
[406548129,1771932646936,-482.62263511,0.00017047,2]
[406548130,1771932646945,-27376.86086096,0.00017126,2]
[406548131,1771932646954,-349.8,0.00017323,2]
[406548132,1771932646963,-482.62263511,0.0001741,2]
[406548133,1771932646972,-2039.3747218,0.000175,3]
[406548134,1771932646981,-173.03842629,0.00017798,2]
[406548135,1771932646990,-1097.40380822,0.00017808,2]
[406548136,1771932646999,-1097.40380822,0.00017808,2]
[406548137,1771932647009,-1097.40380822,0.00017808,2]
[406548138,1771932647019,-1097.40380822,0.00017808,2]
[406548139,1771932647028,-1097.40380822,0.00017808,2]
[406548140,1771932647038,-1097.40380822,0.00017808,2]
[406548141,1771932647052,-1097.40380822,0.00017808,2]
[406548142,1771932647061,-1097.40380822,0.00017808,2]
[406548143,1771932647070,-1097.40380822,0.00017808,2]
[406548144,1771932647079,-1097.40380822,0.00017808,2]
[406548145,1771932647088,-1097.40380822,0.00017808,2]
[406548146,1771932647098,-1097.40380822,0.00017808,2]
[406548147,1771932647107,-1097.40380822,0.00017808,2]
[406548148,1771932647117,-1097.40380822,0.00017808,2]
[406548149,1771932647126,-1097.40380822,0.00017808,2]
[406548150,1771932647135,-1097.40380822,0.00017808,2]
[406548151,1771932647144,-1097.40380822,0.00017808,2]
[406548152,1771932647153,-1152.27399861,0.00017808,2]
[406548153,1771932647163,-1152.27399861,0.00017808,2]
[406548154,1771932647172,-1152.27399861,0.00017808,2]
[406548155,1771932647181,-1152.27399861,0.00017808,2]
[406548156,1771932647190,-1152.27399861,0.00017808,2]
[406548157,1771932647200,-1152.27399861,0.00017808,2]
[406548158,1771932647209,-1152.27399861,0.00017808,2]
[406548159,1771932647219,-1152.27399861,0.00017808,2]
[406548160,1771932647228,-800.0,0.00017808,2]
[406548161,1771932647238,-1005.12410844,0.0001786,2]
[406548162,1771932647247,-450.07875894,0.000179,2]
[406548163,1771932647255,-27376.86086096,0.00017949,2]
[406548164,1771932647265,-1054.0,0.00017998,2]
[406548165,1771932647274,-2690424.86413616,0.00018,2]
[406548166,1771932647283,-1098693.65154253,0.00018,2]
[406548167,1771932647293,-1054.0,0.00018049,2]
[406548168,1771932647302,-1054.0,0.00018101,2]
[406548169,1771932647311,-1054.0,0.0001814,2]
[406548170,1771932647321,-1054.0,0.00018184,2]
[406548171,1771932647330,-1054.0,0.0001824,2]
[406548172,1771932647339,-1054.0,0.00018251,2]
[406548173,1771932647349,-2105.0,0.00018372,2]
[406548174,1771932647358,-1054.0,0.00018382,2]
[406548175,1771932647367,-1000.0,0.00018383,2]
[406548176,1771932647376,-168.0,0.00018545,2]
[406548177,1771932647385,-1054.0,0.00018561,2]
[406548178,1771932647394,-2258.0,0.00018612,2]
[406548179,1771932647403,-1054.0,0.00018623,2]
[406548180,1771932647413,-9035.0,0.00018673,2]
[406548181,1771932647422,-800.0,0.00018904,2]
[406548182,1771932647431,-276.35,0.00018993,2]
[406548183,1771932647440,-350.0,0.00019,2]
[406548184,1771932647449,-1054.0,0.0001917,2]
[406548185,1771932647458,-1054.0,0.00019172,2]
[406548186,1771932647467,-1054.0,0.00019178,2]
[406548187,1771932647477,-787.713897,0.00019178,2]
[406548188,1771932647486,-787.713897,0.00019178,2]
[406548189,1771932647495,-787.713897,0.00019178,2]
[406548190,1771932647504,-787.713897,0.00019178,2]
[406548191,1771932647513,-168.0,0.00019193,2]
[406548192,1771932647523,-1054.0,0.00019195,2]
[406548193,1771932647532,-168.0,0.00019219,2]
[406548194,1771932647541,-168.0,0.00019285,2]
[406548195,1771932647550,-1054.0,0.00019318,2]
[406548196,1771932647559,-1054.0,0.00019427,2]
[406548197,1771932647568,-1054.0,0.00019441,2]
[406548198,1771932647578,-1054.0,0.00019442,2]
[406548199,1771932647587,-1054.0,0.00019467,2]
[406548200,1771932647597,-1054.0,0.00019577,2]
[406548201,1771932647606,-1054.0,0.00019765,2]
[406548202,1771932647616,-557.58452337,0.0002,120]
[406548203,1771932647625,-627.23211955,0.0002,120]
[406548204,1771932647634,-1948.3550072,0.0002,120]
[406548205,1771932647643,-14345.74723251,0.0002,120]
[406548206,1771932647653,-1000.0,0.00020222,2]
[406548207,1771932647662,-500.0,0.0002034,6]
[406548208,1771932647671,-1478.0,0.00020462,2]
[406548209,1771932647680,-3240.0,0.00020541,2]
[406548210,1771932647690,-7809.895549,0.00020822,7]
[406548211,1771932647700,-159.62910539,0.00020859,2]
[406548212,1771932647709,-349.8,0.0002099,2]
[406548213,1771932647719,-400.0,0.00021,2]
[406548214,1771932647730,-5000.0,0.00021918,2]
[406548215,1771932647739,-151.0,0.00021918,2]
[406548216,1771932647749,-151.0,0.00021918,2]
[406548217,1771932647758,-1000.0,0.0002206,2]
[406548218,1771932647768,-224.42031989,0.00022331,2]
[406548219,1771932647777,-512.1,0.00022381,2]
[406548220,1771932647786,-500.0,0.00022381,2]
[406548221,1771932647795,-566.19,0.00022381,2]
[406548222,1771932647805,-591.67,0.00022381,2]
[406548223,1771932647813,-620.42088911,0.00022381,2]
[406548224,1771932647823,-917.0,0.00022381,2]
[406548225,1771932647833,-500.0,0.00022381,2]
[406548226,1771932647842,-523.24,0.00022381,2]
[406548227,1771932647851,-858.26,0.00022381,2]
[406548228,1771932647861,-500.0,0.00022381,2]
[406548229,1771932647870,-3250.77,0.00022466,2]
[406548230,1771932647880,-450.0,0.00023,2]
[406548231,1771932647889,-422.35,0.00023207,2]
[406548232,1771932647900,-276.35,0.00023675,2]
[406548233,1771932647911,-454.1749961,0.00024113,2]
[406548234,1771932647920,-500.0,0.00024133,10]
[406548235,1771932647930,-1000.0,0.00024658,2]
[406548236,1771932647939,-150.0,0.00024658,2]
[406548237,1771932647948,-500.0,0.00025,2]
[406548238,1771932647958,-150.0,0.0002589,2]
[406548239,1771932647968,-150.0,0.00025986,2]
[406548240,1771932647978,-194.34,0.0002606,2]
[406548241,1771932647987,-549.94,0.00026224,2]
[406548242,1771932647996,-657.39,0.00026224,2]
[406548243,1771932648006,-1364.36,0.00026224,2]
[406548244,1771932648015,-168.41,0.00026961,14]
[406548245,1771932648025,-550.0,0.00027,2]
[406548246,1771932648034,-500.0,0.00027063,15]
[406548247,1771932648047,-5980.0,0.00027143,2]
[406548248,1771932648056,-1040.0,0.00027143,2]
[406548249,1771932648066,-3496.0,0.00027143,2]
[406548250,1771932648076,-150.0,0.00027185,2]
[406548251,1771932648088,-160.29288222,0.00027397,2]
[406548252,1771932648098,-1000.0,0.00027397,20]
[406548253,1771932648108,-194.34,0.00027462,2]
[406548254,1771932648120,-150.597,0.00027879,2]
[406548255,1771932648130,-1277.0,0.00027879,2]
[406548256,1771932648139,-1218.319,0.00027879,2]
[406548257,1771932648148,-443.385158,0.00027959,2]
[406548258,1771932648158,-210.17710644,0.00027959,2]
[406548259,1771932648167,-224.42031989,0.0002811,2]
[406548260,1771932648176,-150.0,0.00028544,2]
[406548261,1771932648185,-500.0,0.00028665,19]
[406548262,1771932648194,-194.34,0.00028864,2]
[406548263,1771932648203,-600.0,0.00029,2]
[406548264,1771932648213,-184.24,0.00029539,2]
[406548265,1771932648222,-150.0,0.00029971,2]
[406548266,1771932648232,-753.108,0.00030143,2]
[406548267,1771932648241,-1040.0,0.00030143,2]
[406548268,1771932648251,-151.86,0.00030143,2]
[406548269,1771932648260,-500.0,0.00030267,24]
[406548270,1771932648269,-392.16,0.000304,30]
[406548271,1771932648278,-2000.0,0.000304,2]
[406548272,1771932648288,-184.24,0.00030721,2]
[406548273,1771932648297,-1210.0,0.00030879,2]
[406548274,1771932648306,-159.62910539,0.00031288,2]
[406548275,1771932648316,-150.0,0.0003147,2]
[406548276,1771932648327,-470.0,0.00031705,30]
[406548277,1771932648339,-151.0,0.00031874,2]
[406548278,1771932648348,-156.587,0.00031874,2]
[406548279,1771932648358,-162.380719,0.00031874,2]
[406548280,1771932648368,-159.89501112,0.00031874,2]
[406548281,1771932648378,-184.23489715,0.00031902,2]
[406548282,1771932648388,-181.72310984,0.0003191,2]
[406548283,1771932648398,-327.10159771,0.0003191,2]
[406548284,1771932648408,-167.15607918,0.00032,120]
[406548285,1771932648418,-164.01584354,0.00032,120]
[406548286,1771932648427,-184.7789246,0.00032,120]
[406548287,1771932648437,-1237.69,0.00032,120]
[406548288,1771932648447,-167.15607918,0.00033,120]
[406548289,1771932648458,-164.01584354,0.00033,120]
[406548290,1771932648467,-160.83,0.00033,14]
[406548291,1771932648477,-11053.13,0.00033,14]
[406548292,1771932648487,-150.0,0.00033043,2]
[406548293,1771932648496,-500.0,0.00033196,36]
[406548294,1771932648505,-633.24,0.000333,2]
[406548295,1771932648516,-3250.77,0.00033699,2]
[406548296,1771932648526,-224.42031989,0.00033889,2]
[406548297,1771932648535,-167.15607918,0.000339,120]
[406548298,1771932648545,-164.01584354,0.000339,120]
[406548299,1771932648554,-2000.0,0.000341,2]
[406548300,1771932648564,-150.0,0.00034696,2]
[406548301,1771932648574,-167.15607918,0.00035,120]
[406548302,1771932648587,-164.01584354,0.00035,120]
[406548303,1771932648596,-2218.025,0.00035403,42]
[406548304,1771932648606,-160.83,0.000356,14]
[406548305,1771932648615,-11053.13,0.000356,14]
[406548306,1771932648625,-150.0,0.0003643,2]
[406548307,1771932648634,-500.0,0.00036989,46]
[406548308,1771932648643,-512.1,0.00037753,120]
[406548309,1771932648653,-534.96315196,0.00037753,10]
[406548310,1771932648663,-566.19,0.00037753,45]
[406548311,1771932648672,-591.67,0.00037753,120]
[406548312,1771932648682,-917.0,0.00037753,120]
[406548313,1771932648691,-500.0,0.00037753,120]
[406548314,1771932648700,-523.24,0.00037753,120]
[406548315,1771932648710,-858.26,0.00037753,120]
[406548316,1771932648720,-500.0,0.00037753,30]
[406548317,1771932648729,-2000.0,0.000378,2]
[406548318,1771932648739,-152.0,0.00037805,3]
[406548319,1771932648749,-11053.13,0.000379,2]
[406548320,1771932648758,-337.88,0.00038034,30]
[406548321,1771932648768,-398.25018667,0.00039039,2]
[406548322,1771932648777,-224.42031989,0.00039669,2]
[406548323,1771932648788,-160.83,0.000399,14]
[406548324,1771932648797,-11053.13,0.000399,14]
[406548325,1771932648807,-1000.0,0.0004,30]
[406548326,1771932648817,-6623.03809716,0.00040303,5]
[406548327,1771932648827,-549.94,0.00040798,120]
[406548328,1771932648837,-549.94,0.00040798,120]
[406548329,1771932648847,-549.94,0.00040798,120]
[406548330,1771932648857,-549.94,0.00040798,120]
[406548331,1771932648867,-549.95461346,0.00040798,120]
[406548332,1771932648877,-657.39,0.00040798,2]
[406548333,1771932648887,-657.39,0.00040798,2]
[406548334,1771932648897,-657.39,0.00040798,2]
[406548335,1771932648907,-657.39,0.00040798,2]
[406548336,1771932648916,-657.4566601,0.00040798,2]
[406548337,1771932648926,-1364.36,0.00040798,120]
[406548338,1771932648936,-1364.36,0.00040798,120]
[406548339,1771932648946,-1364.36,0.00040798,120]
[406548340,1771932648955,-1364.36,0.00040798,120]
[406548341,1771932648966,-1364.59,0.00040798,120]
[406548342,1771932648976,-29720.24065867,0.00040977,7]
[406548343,1771932648986,-160.0,0.00041,120]
[406548344,1771932648996,-173.87087054,0.00041,7]
[406548345,1771932649006,-7602.28258293,0.00041,28]
[406548346,1771932649015,-5803.1,0.00041096,120]
[406548347,1771932649026,-239.20747428,0.00041325,5]
[406548348,1771932649035,-500.0,0.0004148,68]
[406548349,1771932649048,-2000.0,0.000415,2]
[406548350,1771932649058,-160.83,0.000415,14]
[406548351,1771932649068,-11053.13,0.000415,14]
[406548352,1771932649077,-158.7363323,0.0004154,120]
[406548353,1771932649087,-11053.13,0.000416,2]
[406548354,1771932649097,-253.41,0.00042546,120]
[406548355,1771932649106,-200.0,0.00042692,120]
[406548356,1771932649116,-993.60630424,0.00043,120]
[406548357,1771932649129,-173.87087054,0.00043,30]
[406548358,1771932649138,-19920.62623976,0.00043,2]
[406548359,1771932649148,-1613.931096,0.0004328,2]
[406548360,1771932649157,-350.0,0.00043305,5]
[406548361,1771932649167,-160.83,0.000434,14]
[406548362,1771932649176,-7233.0,0.00043637,7]
[406548363,1771932649186,-180.921,0.00043692,68]
[406548364,1771932649196,-154.36657739,0.0004376,2]
[406548365,1771932649206,-412.7663,0.00043779,2]
[406548366,1771932649215,-25000.0,0.000439,15]
[406548367,1771932649225,-500.0,0.0004394,60]
[406548368,1771932649234,-633.24,0.00044,30]
[406548369,1771932649244,-25000.0,0.00044,15]
[406548370,1771932649253,-25000.0,0.00044009,15]
[406548371,1771932649263,-25000.0,0.00044018,15]
[406548372,1771932649272,-19044.84189385,0.00044018,15]
[406548373,1771932649282,-428.29,0.0004411,120]
[406548374,1771932649292,-2858.18490911,0.00044191,2]
[406548375,1771932649302,-350.0,0.00044218,4]
[406548376,1771932649311,-206.4832,0.00044221,2]
[406548377,1771932649321,-43220.2652633,0.00044377,2]
[406548378,1771932649331,-642429.16657977,0.00044377,2]
[406548379,1771932649441,-1048.02066522,0.00044377,2]
[406548380,1771932649453,-326.37913478,0.00044377,2]
[406548381,1771932649491,-1559.04062305,0.00044377,2]